bitfinex/quotes_BTCUSD_20250313
["timestamp","ask_amount","ask_price","bid_price","bid_amount"]
[1741892232027,0.01236,80903.0,80897.0,0.012361]
[1741892232256,0.247206,80905.0,80888.0,0.0451]
[1741892232257,0.012362,80893.0,80888.0,0.0451]
[1741892232454,0.247227,80897.0,80890.0,0.25961]
[1741892232656,0.02508118,80901.0,80896.0,0.012361]
[1741892232857,0.02508118,80901.0,80898.0,0.012361]
[1741892233077,0.02508118,80901.0,80897.0,0.012361]
[1741892233283,0.02508118,80901.0,80900.0,0.01236]
[1741892233595,0.259556,80907.0,80902.0,0.01236]
[1741892233801,0.01236,80906.0,80900.0,0.259578]
[1741892233945,0.002,80901.0,80900.0,0.259578]
[1741892234156,0.02502595,80905.0,80900.0,0.259578]
[1741892234973,0.01236,80904.0,80898.0,0.259585]
[1741892235287,0.01236,80904.0,80899.0,0.25958]
[1741892235490,0.01236,80902.0,80897.0,0.012361]
[1741892235691,0.012361,80898.0,80892.0,0.01248659]
[1741892235889,0.012361,80894.0,80892.0,0.00012459]
[1741892236472,0.2596,80894.0,80892.0,0.00012459]
[1741892236873,0.259595,80895.0,80892.0,0.00012459]
[1741892237086,0.001,80894.0,80892.0,0.00012459]
[1741892237291,0.012362,80893.0,80892.0,0.00012459]
[1741892237948,0.26306148,80895.0,80892.0,0.00012459]
[1741892238164,0.2596,80894.0,80892.0,0.00012459]
[1741892238477,0.012362,80893.0,80892.0,0.00012459]
[1741892238692,0.43206299,80893.0,80892.0,0.00012459]
[1741892239045,0.4684213,80893.0,80892.0,0.00012459]
[1741892239950,0.43206299,80893.0,80892.0,0.00012459]
[1741892240610,0.312532,80893.0,80892.0,0.00012459]
[1741892240818,0.325894,80893.0,80892.0,0.00012459]
[1741892241018,0.315362,80893.0,80892.0,0.00012459]
[1741892241395,0.43506299,80893.0,80892.0,0.00012459]
[1741892241593,0.43406299,80893.0,80892.0,0.00012459]
[1741892241795,0.312362,80893.0,80892.0,0.00012459]
[1741892241977,0.43206299,80893.0,80892.0,0.00012459]
[1741892242181,0.43306299,80893.0,80892.0,0.00012459]
[1741892243439,0.43206299,80893.0,80892.0,0.00012459]
[1741892243879,0.47137392,80893.0,80892.0,0.00012459]
[1741892244200,0.47037392,80893.0,80892.0,0.00012459]
[1741892244624,0.48391477,80893.0,80892.0,0.00012459]
[1741892244832,0.57101477,80893.0,80892.0,0.00012459]
[1741892245035,0.57001477,80893.0,80892.0,0.00012459]
[1741892245269,0.97951477,80893.0,80892.0,0.00012459]
[1741892245445,0.98151477,80893.0,80892.0,0.00012459]
[1741892245668,0.98651477,80893.0,80892.0,0.00012459]
[1741892245826,0.98151477,80893.0,80892.0,0.00012459]
[1741892246325,0.97751477,80893.0,80892.0,0.00012459]
[1741892246784,0.97951477,80893.0,80892.0,0.00012459]
[1741892246992,0.97551477,80893.0,80892.0,0.00012459]
[1741892247192,0.99488934,80893.0,80892.0,0.00012459]
[1741892247386,0.99988934,80893.0,80892.0,0.00012459]
[1741892247771,1.00288934,80893.0,80892.0,0.00012459]
[1741892248169,0.99988934,80893.0,80892.0,0.00012459]
[1741892248686,1.00388934,80893.0,80892.0,0.00012459]
[1741892250559,0.93277841,80893.0,80892.0,0.00012459]
[1741892251136,0.559639,80881.0,80880.0,0.000169]
[1741892251318,0.83405999,80881.0,80880.0,0.000169]
[1741892251927,0.85343526,80881.0,80880.0,0.000169]
[1741892252174,0.89061526,80881.0,80880.0,0.000169]
[1741892252866,0.89361526,80881.0,80880.0,0.000169]
[1741892253405,0.90915611,80881.0,80880.0,0.000169]
[1741892253829,0.89461526,80881.0,80880.0,0.000169]
[1741892254271,0.89361526,80881.0,80880.0,0.000169]
[1741892254695,0.008,80881.0,80880.0,0.340911]
[1741892255134,0.003,80881.0,80880.0,0.340911]
[1741892255806,0.78516,80885.0,80882.0,0.012363]
[1741892256038,0.78516,80885.0,80883.0,0.24727]
[1741892256230,0.78516,80885.0,80882.0,0.008363]
[1741892256369,0.78516,80885.0,80884.0,0.012363]
[1741892256577,0.78516,80885.0,80884.0,0.008363]
[1741892256971,0.40961275,80893.0,80890.0,0.259609]
[1741892257174,0.00011275,80893.0,80892.0,0.382905]
[1741892257404,0.00011275,80893.0,80892.0,0.1263]
[1741892257574,0.01247475,80893.0,80892.0,0.1263]
[1741892257779,0.01247475,80893.0,80879.0,0.012364]
[1741892257780,0.012362,80887.0,80882.0,0.0774]
[1741892258382,0.247268,80884.0,80882.0,0.0774]
[1741892258600,0.002,80885.0,80882.0,0.0774]
[1741892258815,0.004,80885.0,80884.0,0.012363]
[1741892258991,0.02137132,80885.0,80884.0,0.012363]
[1741892259864,0.01937132,80885.0,80884.0,0.012363]
[1741892260115,0.01937132,80885.0,80883.0,0.24727]
[1741892260263,0.01937132,80885.0,80883.0,0.259633]
[1741892260462,0.01937132,80885.0,80884.0,0.012363]
[1741892261065,0.01937132,80885.0,80882.0,0.0774]
[1741892261285,0.27899832,80885.0,80884.0,0.001]
[1741892261479,0.01937132,80885.0,80884.0,0.001]
[1741892261734,0.15143531,80885.0,80884.0,0.001]
[1741892262205,0.45143531,80885.0,80884.0,0.001]
[1741892262432,0.50228869,80885.0,80884.0,0.001]
[1741892262755,0.50228869,80885.0,80880.0,0.000169]
[1741892262756,0.012363,80881.0,80880.0,0.000169]
[1741892262964,0.88487337,80881.0,80880.0,0.000169]
[1741892264322,0.92205837,80881.0,80880.0,0.000169]
[1741892265805,0.92805837,80881.0,80880.0,0.000169]
[1741892266107,1.33755837,80881.0,80880.0,0.000169]
[1741892267133,1.34255837,80881.0,80880.0,0.000169]
[1741892267478,0.559675,80870.0,80869.0,0.0001688]
[1741892267681,0.71568852,80870.0,80869.0,0.0001688]
[1741892268409,0.75287552,80870.0,80869.0,0.0001688]
[1741892268587,0.75687552,80870.0,80869.0,0.0001688]
[1741892269212,0.78025299,80870.0,80869.0,0.0001688]
[1741892270497,0.80516114,80870.0,80869.0,0.0001688]
[1741892270899,0.80116114,80870.0,80869.0,0.0001688]
[1741892271113,0.80516114,80870.0,80869.0,0.0001688]
[1741892271617,0.79716114,80870.0,80869.0,0.0001688]
[1741892272006,0.80416114,80870.0,80869.0,0.0001688]
[1741892272209,0.80016114,80870.0,80869.0,0.0001688]
[1741892272594,0.80316114,80870.0,80869.0,0.0001688]
[1741892273249,0.78378367,80870.0,80869.0,0.0001688]
[1741892274229,0.45450169,80870.0,80869.0,0.0001688]
[1741892274438,0.67786416,80870.0,80869.0,0.0001688]
[1741892275680,0.06809515,80870.0,80869.0,0.0125338]
[1741892276029,0.06809515,80870.0,80869.0,0.0771688]
[1741892276374,0.03090815,80870.0,80869.0,0.0771688]
[1741892277042,0.006,80870.0,80869.0,0.0895338]
[1741892277815,0.006,80870.0,80869.0,0.1376338]
[1741892278048,0.02537577,80870.0,80869.0,0.1376338]
[1741892278613,0.02237577,80870.0,80869.0,0.1376338]
[1741892279333,0.02437577,80870.0,80869.0,0.1376338]
[1741892280128,0.01937577,80870.0,80869.0,0.1376338]
[1741892280448,0.000338,80881.0,80880.0,0.384742]
[1741892280654,0.000338,80881.0,80880.0,0.383742]
[1741892282332,0.000338,80881.0,80880.0,0.80444299]
[1741892286640,0.000338,80881.0,80880.0,0.80344299]
[1741892286960,0.000338,80881.0,80880.0,0.80544299]
[1741892288147,0.000338,80881.0,80880.0,0.80344299]
[1741892288358,0.000338,80881.0,80880.0,0.80644299]
[1741892288735,0.000338,80881.0,80880.0,0.80844299]
[1741892288947,0.000338,80881.0,80880.0,0.80644299]
[1741892289151,0.000338,80881.0,80880.0,0.81044299]
[1741892290290,0.000338,80881.0,80880.0,0.80761199]
[1741892290488,0.000338,80881.0,80880.0,0.81261199]
[1741892290709,0.2472,80906.0,80900.0,0.259576]
[1741892290916,0.02179188,80912.0,80900.0,0.01236]
[1741892291152,0.11970099,80910.0,80907.0,0.247196]
[1741892291321,0.01480618,80911.0,80910.0,0.012359]
[1741892291511,0.247178,80914.0,80909.0,0.25955]
[1741892291738,0.02495256,80911.0,80909.0,0.25955]
[1741892292150,0.02495256,80911.0,80907.0,0.247196]
[1741892292310,0.02495256,80911.0,80906.0,0.01236]
[1741892292513,0.02495256,80911.0,80906.0,0.259558]
[1741892292715,0.02895256,80911.0,80907.0,0.259554]
[1741892293161,0.02495256,80911.0,80907.0,0.259554]
[1741892293319,0.02895256,80911.0,80907.0,0.012359]
[1741892293519,0.02895256,80911.0,80907.0,0.010359]
[1741892293923,0.259547,80910.0,80904.0,0.01236]
[1741892294129,0.012361,80898.0,80891.0,0.095162]
[1741892294335,0.01236,80901.0,80892.0,0.012362]
[1741892294535,0.01236,80901.0,80896.0,0.012361]
[1741892294732,0.01236,80901.0,80886.0,0.247258]
[1741892294733,0.012362,80891.0,80878.0,0.0477]
[1741892294936,0.012363,80881.0,80878.0,0.1305]
[1741892295178,0.012363,80886.0,80879.0,0.012364]
[1741892295392,0.24726,80887.0,80879.0,0.012364]
[1741892295593,0.02428078,80890.0,80884.0,0.012363]
[1741892295789,0.247254,80889.0,80883.0,0.259631]
[1741892295943,0.27249164,80889.0,80883.0,0.259631]
[1741892296565,0.27249164,80889.0,80882.0,0.012363]
[1741892296566,0.002,80887.0,80882.0,0.259635]
[1741892296768,0.002,80887.0,80886.0,0.012363]
[1741892297891,0.259608,80892.0,80886.0,0.012363]
[1741892298273,0.001,80889.0,80886.0,0.259622]
[1741892298477,0.247231,80896.0,80891.0,0.012362]
[1741892299127,0.001,80892.0,80891.0,0.012362]
[1741892299549,0.001,80892.0,80891.0,0.258605]
[1741892299750,0.001,80892.0,80891.0,0.336605]
[1741892300123,0.001,80892.0,80891.0,0.384105]
[1741892300497,0.247199,80907.0,80900.0,0.247216]
[1741892300498,0.2724602,80906.0,80900.0,0.247216]
[1741892300980,0.0252582,80906.0,80902.0,0.25957]
[1741892301171,0.012359,80909.0,80904.0,0.256566]
[1741892301373,0.012359,80909.0,80899.0,0.012361]
[1741892301374,0.247203,80905.0,80899.0,0.012361]
[1741892301516,0.01236,80903.0,80897.0,0.247225]
[1741892301716,0.259579,80900.0,80894.0,0.012361]
[1741892301936,0.259579,80900.0,80896.0,0.24723]
[1741892302340,0.01236,80901.0,80896.0,0.259591]
[1741892302705,0.259578,80901.0,80896.0,0.012361]
[1741892302907,0.001,80900.0,80896.0,0.012361]
[1741892303958,0.001,80900.0,80896.0,0.25959]
[1741892304171,0.01236,80903.0,80898.0,0.259583]
[1741892304422,0.401587,80911.0,80904.0,0.01236]
[1741892304592,0.1544,80911.0,80905.0,0.01236]
[1741892304791,0.247194,80909.0,80904.0,0.257564]
[1741892305130,0.28490799,80906.0,80901.0,0.258575]
[1741892305337,0.02534499,80906.0,80903.0,0.247208]
[1741892305500,0.02534499,80906.0,80902.0,0.01236]
[1741892305697,0.02734499,80906.0,80902.0,0.01236]
[1741892305997,0.001,80903.0,80902.0,0.01236]
[1741892306222,0.001,80903.0,80901.0,0.258575]
[1741892306965,0.001,80903.0,80902.0,0.08796]
[1741892307302,0.0001689,80907.0,80906.0,0.01236]
[1741892307504,0.0001689,80907.0,80906.0,0.30116]
[1741892307862,9e-07,80907.0,80906.0,0.80276099]
[1741892308649,0.000338,80922.0,80921.0,0.687911]
[1741892308855,0.000338,80922.0,80921.0,0.96197199]
[1741892309053,5.7e-07,80922.0,80921.0,0.96197199]
[1741892309261,5.7e-07,80924.0,80923.0,0.64924585]
[1741892309625,5.7e-07,80924.0,80923.0,0.81714684]
[1741892309877,0.03302196,80958.0,80953.0,0.012352]
[1741892310111,0.03302196,80958.0,80953.0,0.259408]
[1741892310344,0.00029327,80954.0,80953.0,0.259408]
[1741892310585,0.00029327,80954.0,80953.0,0.340408]
[1741892312072,0.00029327,80954.0,80953.0,0.081]
[1741892312316,0.012353,80951.0,80947.0,0.0467]
[1741892312543,0.012353,80951.0,80946.0,0.081]
[1741892313469,0.012353,80950.0,80946.0,0.081]
[1741892313681,0.01864527,80954.0,80947.0,0.012353]
[1741892313875,0.01864527,80954.0,80948.0,0.247071]
[1741892313876,0.26270127,80954.0,80948.0,0.247071]
[1741892314108,0.002,80951.0,80948.0,0.247071]
[1741892314588,0.012352,80953.0,80947.0,0.012353]
[1741892314836,0.002,80951.0,80948.0,0.247072]
[1741892315083,0.01264527,80954.0,80949.0,0.012353]
[1741892315563,0.25970127,80954.0,80949.0,0.012353]
[1741892315796,0.001,80953.0,80949.0,0.012353]
[1741892316033,0.259411,80953.0,80947.0,0.012353]
[1741892316270,0.012352,80952.0,80947.0,0.012353]
[1741892316557,0.259416,80951.0,80946.0,0.34043]
[1741892316789,0.247092,80942.0,80938.0,0.0816]
[1741892316982,0.259421,80950.0,80940.0,0.012354]
[1741892317201,0.259425,80948.0,80942.0,0.259444]
[1741892317578,0.012353,80947.0,80942.0,0.259444]
[1741892317781,0.247069,80949.0,80943.0,0.012354]
[1741892317989,0.259422,80949.0,80942.0,0.012354]
[1741892318195,0.247078,80946.0,80942.0,0.012354]
[1741892318393,0.012353,80947.0,80942.0,0.012354]
[1741892318606,0.25943,80947.0,80942.0,0.012354]
[1741892318974,0.247081,80946.0,80943.0,0.001]
[1741892319384,0.259434,80946.0,80942.0,0.001]
[1741892320141,0.012354,80945.0,80942.0,0.001]
[1741892320349,0.012354,80943.0,80942.0,0.001]
[1741892320577,0.247083,80945.0,80942.0,0.001]
[1741892320964,0.247083,80945.0,80942.0,0.002]
[1741892321389,0.247083,80945.0,80940.0,0.247096]
[1741892321633,0.247083,80945.0,80942.0,0.001]
[1741892321817,0.247083,80945.0,80940.0,0.25945]
[1741892322274,0.02516705,80946.0,80941.0,0.259444]
[1741892322474,0.02516705,80946.0,80942.0,0.002]
[1741892322807,0.02516705,80946.0,80945.0,0.012354]
[1741892323046,0.259395,80958.0,80950.0,0.012353]
[1741892323269,0.247046,80957.0,80952.0,0.012352]
[1741892323504,0.259398,80957.0,80952.0,0.012352]
[1741892323735,0.28465824,80956.0,80948.0,0.012353]
[1741892323968,0.012353,80949.0,80944.0,0.012354]
[1741892324218,0.247061,80952.0,80947.0,0.012353]
[1741892324219,0.259413,80952.0,80947.0,0.012353]
[1741892324452,0.01264527,80954.0,80949.0,0.259419]
[1741892324671,0.25970027,80954.0,80949.0,0.259419]
[1741892324873,0.2690385,80954.0,80949.0,0.259419]
[1741892325313,0.259411,80953.0,80948.0,0.012353]
[1741892325546,0.2566865,80954.0,80949.0,0.259419]
[1741892325993,0.2606865,80954.0,80949.0,0.259419]
[1741892326253,0.2606865,80954.0,80947.0,0.012353]
[1741892326254,0.259411,80953.0,80947.0,0.259426]
[1741892326458,0.247061,80952.0,80947.0,0.259426]
[1741892327221,0.247061,80952.0,80946.0,0.259429]
[1741892327222,0.247077,80947.0,80942.0,0.259444]
[1741892327451,0.012353,80950.0,80945.0,0.247079]
[1741892328140,0.247064,80951.0,80945.0,0.247079]
[1741892328141,0.247064,80951.0,80946.0,0.259428]
[1741892328383,0.001,80952.0,80947.0,0.247073]
[1741892328664,0.001,80952.0,80950.0,0.259416]
[1741892328899,0.002,80953.0,80951.0,0.012353]
[1741892329116,0.002,80953.0,80951.0,0.011353]
[1741892329362,0.002,80953.0,80951.0,0.258413]
[1741892329843,0.002,80953.0,80952.0,0.012352]
[1741892330060,0.002,80953.0,80952.0,0.091452]
[1741892330273,0.002,80953.0,80952.0,0.090452]
[1741892330482,0.002,80953.0,80952.0,0.139852]
[1741892330703,0.002,80953.0,80952.0,0.138852]
[1741892331162,0.002,80953.0,80952.0,0.14008716]
[1741892331429,0.002,80953.0,80952.0,0.25978815]
[1741892331632,0.002,80953.0,80952.0,0.56055299]
[1741892332075,0.00029327,80954.0,80952.0,0.56055299]
[1741892332076,0.00029327,80954.0,80953.0,0.636608]
[1741892332303,0.00029327,80954.0,80953.0,0.75430899]
[1741892333806,0.00029327,80954.0,80953.0,0.76030899]
[1741892334030,0.00029327,80954.0,80953.0,2.26030899]
[1741892334556,0.0003376,80961.0,80960.0,0.684386]
[1741892334788,0.00075266,80961.0,80960.0,0.80408699]
[1741892335464,0.00075266,80961.0,80960.0,0.81862784]
[1741892335913,0.00075266,80961.0,80960.0,0.82462784]
[1741892336960,0.00175266,80961.0,80960.0,0.82962784]
[1741892338682,4.6e-07,80962.0,80961.0,0.10849185]
[1741892338847,0.0003376,80987.0,80968.0,0.687261]
[1741892339041,1e-06,80969.0,80968.0,0.97554284]
[1741892339465,1e-06,80969.0,80968.0,2.47554284]
[1741892340548,1e-06,80969.0,80968.0,2.47954284]
[1741892340894,0.0003376,80987.0,80973.0,0.65328485]
[1741892341192,0.0003376,80987.0,80973.0,0.77298584]
[1741892342067,0.246889,81008.0,80973.0,0.77298584]
[1741892342068,0.012343,81017.0,81007.0,0.012344]
[1741892342264,0.259218,81013.0,81004.0,0.012345]
[1741892342492,0.28398014,81013.0,81005.0,0.259239]
[1741892343104,0.28398014,81013.0,81001.0,0.012345]
[1741892343105,0.259227,81011.0,81001.0,0.012345]
[1741892343309,0.03710514,81013.0,81001.0,0.012345]
[1741892343310,0.259238,81007.0,81001.0,0.259252]
[1741892343447,0.012343,81012.0,81004.0,0.012345]
[1741892343653,0.00389826,81013.0,81011.0,0.012344]
[1741892343882,0.00389826,81013.0,81003.0,0.012345]
[1741892344086,0.00389826,81013.0,81007.0,0.24689]
[1741892344289,0.246877,81012.0,81005.0,0.012344]
[1741892344465,0.25922,81012.0,81006.0,0.246895]
[1741892344689,0.00189826,81013.0,81007.0,0.259233]
[1741892344887,0.012343,81014.0,81008.0,0.25923]
[1741892345088,0.259213,81015.0,81010.0,0.246881]
[1741892345295,0.01437241,81018.0,81012.0,0.012343]
[1741892345471,0.01437241,81018.0,81015.0,0.259208]
[1741892345677,0.01437241,81018.0,81015.0,0.012343]
[1741892346121,0.01437241,81018.0,81016.0,0.012343]
[1741892346323,8e-05,81023.0,81016.0,0.011343]
[1741892346535,8e-05,81023.0,81016.0,0.086743]
[1741892347784,8e-05,81023.0,81016.0,0.092743]
[1741892348827,8e-05,81023.0,81016.0,0.097743]
[1741892349227,0.06386036,81026.0,81020.0,0.259192]
[1741892349619,0.25918,81025.0,81020.0,0.259192]
[1741892349959,0.246861,81018.0,81016.0,0.006]
[1741892350306,0.259194,81020.0,81016.0,0.006]
[1741892350499,0.012342,81021.0,81016.0,0.004]
[1741892350637,0.012342,81021.0,81020.0,0.003]
[1741892351226,0.259204,81017.0,81016.0,0.004]
[1741892351424,0.246852,81020.0,81016.0,0.004]
[1741892351631,0.259204,81017.0,80975.0,0.05]
[1741892351870,0.012344,81009.0,81008.0,0.00012454]
[1741892352029,0.25923,81009.0,81008.0,0.00012454]
[1741892352231,0.37893099,81009.0,81008.0,0.00012454]
[1741892353281,0.37893099,81009.0,81008.0,0.00212454]
[1741892353886,0.8573972,81009.0,81008.0,1e-08]
[1741892354107,0.246936,80993.0,80987.0,0.259297]
[1741892354310,0.246936,80993.0,80981.0,0.012348]
[1741892354311,0.012344,81005.0,80970.0,0.20175584]
[1741892354638,0.012345,81004.0,80999.0,0.246916]
[1741892354842,0.259248,81004.0,80999.0,0.246916]
[1741892355450,0.259245,81005.0,80999.0,0.259261]
[1741892355654,0.001,81005.0,81000.0,0.259255]
[1741892355868,0.012345,81004.0,80999.0,0.259261]
[1741892356009,0.012345,81004.0,80999.0,0.246916]
[1741892356982,0.001,81005.0,81003.0,0.012345]
[1741892357198,0.001,81005.0,81004.0,0.259246]
[1741892358296,0.00012435,81009.0,81007.0,0.259233]
[1741892358452,0.00012435,81009.0,81008.0,0.012344]
[1741892359698,0.00012435,81009.0,81008.0,0.003]
[1741892359903,0.24701035,81009.0,81008.0,0.003]
[1741892360525,0.00012435,81009.0,81008.0,0.003]
[1741892361122,0.00012435,81009.0,81004.0,0.259243]
[1741892361269,0.01246835,81009.0,81008.0,0.004]
[1741892361635,0.01246835,81009.0,81008.0,0.005]
[1741892362221,0.23225872,81011.0,81008.0,0.005]
[1741892362412,0.23225872,81011.0,81008.0,0.004]
[1741892362413,0.11970099,81010.0,81008.0,0.004]
[1741892362619,0.36658599,81010.0,81008.0,0.005]
[1741892362995,0.11970099,81010.0,81008.0,0.005]
[1741892363196,0.02487058,81014.0,81009.0,0.012344]
[1741892363417,0.2592,81019.0,81013.0,0.012343]
[1741892363596,0.246876,81013.0,81008.0,0.003]
[1741892363791,0.246885,81010.0,81008.0,0.003]
[1741892363996,0.012344,81009.0,81008.0,0.003]
[1741892364220,0.012344,81007.0,81000.0,0.246911]
[1741892364704,0.259239,81006.0,80999.0,0.25971975]
[1741892365035,0.259239,81006.0,81000.0,0.259256]
[1741892365684,0.259239,81006.0,81000.0,0.012345]
[1741892365881,0.246907,81002.0,80999.0,0.00246175]
[1741892366113,0.012345,81000.0,80999.0,0.00246175]
[1741892366315,0.012345,81000.0,80999.0,0.00046175]
[1741892366472,0.13204599,81000.0,80999.0,0.00046175]
[1741892366883,0.13204599,81000.0,80999.0,0.00246175]
[1741892367468,0.13204599,81000.0,80999.0,0.00046175]
[1741892367788,0.13204599,81000.0,80999.0,0.00246175]
[1741892368198,0.13204599,81000.0,80999.0,0.00046175]
[1741892368611,0.44132131,81000.0,80999.0,0.00146175]
[1741892368970,0.47759951,81000.0,80999.0,0.00146175]
[1741892369172,0.44132131,81000.0,80999.0,0.00146175]
[1741892369371,0.47759388,81000.0,80999.0,0.00146175]
[1741892370329,0.44132131,81000.0,80999.0,0.00146175]
[1741892370953,0.44132131,81000.0,80999.0,0.00046175]
[1741892371307,0.44232131,81000.0,80999.0,0.00046175]
[1741892371826,0.44132131,81000.0,80999.0,0.00046175]
[1741892372176,0.47757819,81000.0,80999.0,0.00046175]
[1741892372372,0.47857819,81000.0,80999.0,0.00046175]
[1741892373254,0.48057819,81000.0,80999.0,0.00046175]
[1741892375038,0.63429819,81000.0,80999.0,0.00046175]
[1741892377022,0.48057819,81000.0,80999.0,0.00046175]
[1741892377424,0.44432131,81000.0,80999.0,0.00046175]
[1741892378011,0.44132131,81000.0,80999.0,0.00046175]
[1741892378360,0.44232131,81000.0,80999.0,0.00046175]
[1741892378949,0.47855601,81000.0,80999.0,0.00046175]
[1741892379401,0.47955601,81000.0,80999.0,0.00046175]
[1741892381726,0.49409686,81000.0,80999.0,0.00046175]
[1741892381880,0.52889686,81000.0,80999.0,0.00046175]
[1741892382703,0.52789686,81000.0,80999.0,0.00046175]
[1741892382907,0.53289686,81000.0,80999.0,0.00046175]
[1741892383361,0.52315586,81000.0,80999.0,0.00046175]
[1741892383561,0.48835586,81000.0,80999.0,0.00046175]
[1741892383771,0.49135586,81000.0,80999.0,0.00046175]
[1741892383999,0.47681501,81000.0,80999.0,0.00046175]
[1741892384373,0.47581501,81000.0,80999.0,0.00046175]
[1741892384671,0.47881501,81000.0,80999.0,0.00046175]
[1741892384880,0.62949501,81000.0,80999.0,0.00046175]
[1741892385087,0.63249501,81000.0,80999.0,0.00046175]
[1741892385504,0.62949501,81000.0,80999.0,0.00046175]
[1741892385714,0.62649501,81000.0,80999.0,0.00046175]
[1741892386164,0.62949501,81000.0,80999.0,0.00046175]
[1741892386380,0.63249501,81000.0,80999.0,0.00046175]
[1741892386863,0.62949501,81000.0,80999.0,0.00046175]
[1741892387337,0.63049501,81000.0,80999.0,0.00046175]
[1741892387553,0.62749501,81000.0,80999.0,0.00046175]
[1741892387725,0.62949501,81000.0,80999.0,0.00046175]
[1741892388906,0.64403586,81000.0,80999.0,0.00046175]
[1741892390822,0.259341,80974.0,80973.0,0.0003376]
[1741892391028,0.37904199,80974.0,80973.0,0.0003376]
[1741892391386,0.41533995,80974.0,80973.0,0.0003376]
[1741892392067,0.15599895,80974.0,80973.0,0.0126866]
[1741892392260,0.01888643,80978.0,80977.0,0.259332]
[1741892392461,0.01888643,80978.0,80977.0,0.246983]
[1741892392611,0.01888643,80978.0,80974.0,0.259341]
[1741892392816,0.04406536,80978.0,80976.0,0.246986]
[1741892393012,0.04406536,80978.0,80975.0,0.012349]
[1741892393013,0.05792901,80978.0,80975.0,0.012349]
[1741892393219,0.31726001,80978.0,80973.0,0.0146866]
[1741892393416,0.05792901,80978.0,80974.0,0.259339]
[1741892393580,0.05792901,80978.0,80977.0,0.012349]
[1741892393783,0.05792901,80978.0,80975.0,0.246988]
[1741892394135,0.05792901,80978.0,80973.0,0.0146866]
[1741892394467,0.05792901,80978.0,80976.0,0.246986]
[1741892394687,0.04406536,80978.0,80977.0,0.001]
[1741892394899,0.01888643,80978.0,80977.0,0.141149]
[1741892395298,0.01888643,80978.0,80977.0,0.140149]
[1741892396535,0.24695,80988.0,80977.0,0.140149]
[1741892396536,0.259306,80985.0,80979.0,0.259323]
[1741892396670,0.012347,80985.0,80979.0,0.259323]
[1741892397105,0.11982532,80988.0,80982.0,0.246968]
[1741892397334,0.03631849,80987.0,80983.0,0.012348]
[1741892397511,0.03631849,80987.0,80983.0,0.246963]
[1741892397667,0.001,80985.0,80983.0,0.246963]
[1741892397869,0.001,80985.0,80984.0,0.259308]
[1741892398713,0.001,80985.0,80984.0,0.012348]
[1741892399149,0.00012433,80988.0,80985.0,0.246959]
[1741892399353,0.002,80987.0,80985.0,0.245959]
[1741892399557,0.002,80987.0,80985.0,0.246959]
[1741892399922,0.00012433,80988.0,80987.0,0.246953]
[1741892400127,0.00012433,80988.0,80985.0,0.259306]
[1741892400328,0.259306,80985.0,80984.0,0.000338]
[1741892400528,0.41534504,80985.0,80984.0,0.000338]
[1741892400714,0.03633805,80985.0,80984.0,0.000338]
[1741892400910,0.03646238,80988.0,80986.0,0.246956]
[1741892401202,0.246958,80986.0,80984.0,0.080838]
[1741892401338,0.246958,80986.0,80984.0,0.001338]
[1741892401339,0.16841111,80985.0,80984.0,0.001338]
[1741892401740,0.16841111,80985.0,80984.0,0.002338]
[1741892401971,0.62197111,80985.0,80984.0,0.001338]
[1741892402179,0.559341,80974.0,80973.0,0.0003376]
[1741892402434,0.247032,80961.0,80954.0,0.012352]
[1741892402578,0.15606411,80960.0,80954.0,0.259403]
[1741892402780,0.03636312,80959.0,80955.0,0.2594]
[1741892403252,0.03636312,80959.0,80956.0,0.259397]
[1741892403557,0.06152121,80959.0,80957.0,0.259394]
[1741892403758,0.03942697,80959.0,80956.0,0.247045]
[1741892404078,0.02515809,80959.0,80958.0,0.247041]
[1741892404409,0.06150041,80959.0,80958.0,0.259393]
[1741892404645,0.02515809,80959.0,80958.0,0.259393]
[1741892404956,0.02515809,80959.0,80955.0,0.005]
[1741892405202,0.02515809,80959.0,80956.0,0.002]
[1741892405375,0.02515809,80959.0,80958.0,0.012352]
[1741892405743,0.02515809,80959.0,80958.0,0.002]
[1741892405942,0.03750909,80959.0,80958.0,0.002]
[1741892406290,0.012352,80957.0,80956.0,0.002]
[1741892406422,0.012352,80957.0,80951.0,0.259413]
[1741892406617,0.259399,80957.0,80947.0,0.0473]
[1741892406818,0.24705,80956.0,80949.0,0.012353]
[1741892407024,0.259405,80954.0,80949.0,0.012353]
[1741892407226,0.012352,80954.0,80949.0,0.259419]
[1741892407628,0.247052,80955.0,80950.0,0.259417]
[1741892407829,0.02515809,80959.0,80956.0,0.0818]
[1741892408030,0.259395,80958.0,80956.0,0.0818]
[1741892408395,0.012352,80953.0,80948.0,0.0818]
[1741892408592,0.012353,80949.0,80948.0,0.0818]
[1741892409033,0.02307967,80965.0,80953.0,0.015352]
[1741892409245,0.02307967,80965.0,80958.0,0.259393]
[1741892409374,0.01235,80969.0,80958.0,0.259393]
[1741892409575,0.259366,80967.0,80958.0,0.259393]
[1741892409994,0.01235,80966.0,80958.0,0.259393]
[1741892410195,0.259374,80965.0,80958.0,0.259393]
[1741892410415,0.02615809,80959.0,80958.0,0.259393]
[1741892410620,0.259417,80951.0,80945.0,0.0497]
[1741892410831,0.012352,80952.0,80946.0,0.012353]
[1741892411038,0.37909699,80958.0,80947.0,0.259426]
[1741892411255,0.259398,80957.0,80951.0,0.24706]
[1741892411472,0.11970099,80956.0,80951.0,0.259415]
[1741892411685,0.11970099,80956.0,80952.0,0.247056]
[1741892411890,0.11970099,80956.0,80951.0,0.259415]
[1741892412092,0.11970099,80956.0,80953.0,0.247056]
[1741892412475,0.11970099,80956.0,80952.0,0.012352]
[1741892412947,0.11970099,80956.0,80953.0,0.247056]
[1741892413144,0.02615809,80959.0,80958.0,0.259393]
[1741892413559,0.001,80959.0,80958.0,0.339693]
[1741892413762,0.01235,80967.0,80961.0,0.259382]
[1741892413963,0.11970099,80966.0,80961.0,0.012351]
[1741892414310,0.11970099,80966.0,80964.0,0.259373]